[Event "FIDE Women's Grand Swiss 2023"]
[Site "Villa Marina, Douglas, Isle of Man, Isle Of Man"]
[Date "2023.10.30"]
[Round "6.11"]
[White "Beydullayeva, Govhar"]
[Black "Shuvalova, Polina"]
[Result "0-1"]
[TimeControl "40/90 + 30 + 30s/move"]
[WhiteFideId "13413015"]
[BlackFideId "24171760"]
[WhiteElo "2383"]
[BlackElo "2506"]

1. d4 {[%clk 01:30:58]} {[%emt 00:00:02]} Nf6 {[%clk 01:30:56]} {[%emt
00:00:05]} 2. c4 {[%clk 01:31:25]} {[%emt 00:00:03]} e6 {[%clk 01:31:22]}
{[%emt 00:00:04]} 3. Nf3 {[%clk 01:31:47]} {[%emt 00:00:08]} d5 {[%clk
01:31:47]} {[%emt 00:00:04]} 4. Nc3 {[%clk 01:32:13]} {[%emt 00:00:04]} Be7
{[%clk 01:32:06]} {[%emt 00:00:11]} 5. Bf4 {[%clk 01:31:59]} {[%emt 00:00:45]}
O-O {[%clk 01:32:30]} {[%emt 00:00:06]} 6. e3 {[%clk 01:32:23]} {[%emt
00:00:05]} Nbd7 {[%clk 01:32:55]} {[%emt 00:00:05]} 7. Be2 {[%clk 01:21:57]}
{[%emt 00:10:56]} dxc4 {[%clk 01:32:46]} {[%emt 00:00:39]} 8. O-O {[%clk
01:22:13]} {[%emt 00:00:14]} a6 {[%clk 01:33:13]} {[%emt 00:00:04]} 9. a4
{[%clk 01:22:34]} {[%emt 00:00:08]} c5 {[%clk 01:32:07]} {[%emt 00:01:35]} 10.
d5 {[%clk 01:17:40]} {[%emt 00:05:24]} exd5 {[%clk 01:32:31]} {[%emt 00:00:06]}
11. Nxd5 {[%clk 01:18:08]} {[%emt 00:00:02]} Nxd5 {[%clk 01:32:56]} {[%emt
00:00:05]} 12. Qxd5 {[%clk 01:18:36]} {[%emt 00:00:03]} Nf6 {[%clk 01:33:12]}
{[%emt 00:00:14]} 13. Qxd8 {[%clk 01:07:51]} {[%emt 00:11:15]} Rxd8 {[%clk
01:33:35]} {[%emt 00:00:06]} 14. Bc7 {[%clk 01:08:11]} {[%emt 00:00:10]} Rd7
{[%clk 01:32:53]} {[%emt 00:01:12]} 15. Ba5 {[%clk 01:03:47]} {[%emt 00:04:54]}
b6 {[%clk 01:17:47]} {[%emt 00:15:36]} 16. Bxb6 {[%clk 00:45:12]} {[%emt
00:19:05]} a5 {[%clk 01:17:57]} {[%emt 00:00:20]} 17. Ne5 {[%clk 00:44:20]}
{[%emt 00:01:22]} Nd5 {[%clk 01:17:28]} {[%emt 00:00:58]} 18. Bxa5 {[%clk
00:26:42]} {[%emt 00:18:09]} Rxa5 {[%clk 01:17:04]} {[%emt 00:00:54]} 19. Bxc4
{[%clk 00:26:43]} {[%emt 00:00:29]} Nb6 {[%clk 01:08:11]} {[%emt 00:09:22]} 20.
Bxf7+ {[%clk 00:25:51]} {[%emt 00:01:22]} Kf8 {[%clk 01:08:37]} {[%emt
00:00:04]} 21. Nxd7+ {[%clk 00:26:09]} {[%emt 00:00:12]} Bxd7 {[%clk 01:09:03]}
{[%emt 00:00:05]} 22. Bb3 {[%clk 00:24:56]} {[%emt 00:01:42]} g6 {[%clk
01:08:21]} {[%emt 00:01:11]} 23. Rfd1 {[%clk 00:23:38]} {[%emt 00:01:48]} Be8
{[%clk 01:01:29]} {[%emt 00:07:23]} 24. Be6 {[%clk 00:20:04]} {[%emt 00:04:04]}
Bf6 {[%clk 00:52:56]} {[%emt 00:09:03]} 25. Rd2 {[%clk 00:16:36]} {[%emt
00:03:58]} Ke7 {[%clk 00:45:50]} {[%emt 00:07:36]} 26. Bg8 {[%clk 00:16:47]}
{[%emt 00:00:20]} h6 {[%clk 00:39:47]} {[%emt 00:06:33]} 27. h3 {[%clk
00:15:20]} {[%emt 00:01:57]} Bxa4 {[%clk 00:32:58]} {[%emt 00:07:18]} 28. Bb3
{[%clk 00:05:30]} {[%emt 00:10:20]} c4 {[%clk 00:32:19]} {[%emt 00:01:09]} 29.
Bd1 {[%clk 00:03:31]} {[%emt 00:02:30]} Ra8 {[%clk 00:31:48]} {[%emt 00:01:01]}
30. e4 {[%clk 00:03:02]} {[%emt 00:00:59]} g5 {[%clk 00:31:06]} {[%emt
00:01:12]} 31. g3 {[%clk 00:02:48]} {[%emt 00:00:44]} c3 {[%clk 00:18:47]}
{[%emt 00:12:49]} 32. bxc3 {[%clk 00:03:05]} {[%emt 00:00:13]} Bxc3 {[%clk
00:19:14]} {[%emt 00:00:04]} 33. Rxa4 {[%clk 00:02:16]} {[%emt 00:01:19]} Bxd2
{[%clk 00:18:40]} {[%emt 00:01:04]} 34. Rxa8 {[%clk 00:02:40]} {[%emt
00:00:06]} Nxa8 {[%clk 00:19:07]} {[%emt 00:00:02]} 35. Kf1 {[%clk 00:01:59]}
{[%emt 00:01:12]} Nc7 {[%clk 00:19:16]} {[%emt 00:00:22]} 36. Ke2 {[%clk
00:02:23]} {[%emt 00:00:05]} Bc1 {[%clk 00:19:41]} {[%emt 00:00:04]} 37. Bb3
{[%clk 00:02:25]} {[%emt 00:00:28]} Nb5 {[%clk 00:19:00]} {[%emt 00:01:11]} 38.
Bc4 {[%clk 00:01:08]} {[%emt 00:01:47]} Nd4+ {[%clk 00:18:38]} {[%emt
00:00:52]} 39. Kd3 {[%clk 00:00:50]} {[%emt 00:00:49]} Nf3 {[%clk 00:19:00]}
{[%emt 00:00:07]} 40. Ke2 {[%clk 00:01:13]} {[%emt 00:00:07]} Ne5 {[%clk
00:12:12]} {[%emt 00:07:18]} 41. Bb5 {[%clk 00:01:29]} {[%emt 00:00:14]} Ng6
{[%clk 00:10:48]} {[%emt 00:01:53]} 42. Kd1 {[%clk 00:28:57]} {[%emt 00:03:02]}
Ba3 {[%clk 00:38:54]} {[%emt 00:02:24]} 43. Be2 {[%clk 00:29:20]} {[%emt
00:00:08]} Bd6 {[%clk 00:37:27]} {[%emt 00:01:56]} 44. Bh5 {[%clk 00:29:32]}
{[%emt 00:00:17]} Nf8 {[%clk 00:36:57]} {[%emt 00:01:01]} 45. Ke2 {[%clk
00:29:35]} {[%emt 00:00:28]} Kf6 {[%clk 00:37:21]} {[%emt 00:00:05]} 46. Bg4
{[%clk 00:23:01]} {[%emt 00:07:03]} Ng6 {[%clk 00:37:40]} {[%emt 00:00:11]} 47.
Bf5 {[%clk 00:22:04]} {[%emt 00:01:28]} Ne7 {[%clk 00:37:07]} {[%emt 00:01:03]}
48. Bd7 {[%clk 00:21:17]} {[%emt 00:01:16]} Ke5 {[%clk 00:31:14]} {[%emt
00:06:25]} 49. Kf3 {[%clk 00:21:35]} {[%emt 00:00:11]} Ng8 {[%clk 00:31:39]}
{[%emt 00:00:04]} 50. Bf5 {[%clk 00:21:20]} {[%emt 00:00:46]} h5 {[%clk
00:25:20]} {[%emt 00:06:49]} 51. Bg6 {[%clk 00:21:08]} {[%emt 00:00:42]} Nf6
{[%clk 00:25:28]} {[%emt 00:00:21]} 52. Bf5 {[%clk 00:20:58]} {[%emt 00:00:40]}
Bc5 {[%clk 00:25:23]} {[%emt 00:00:35]} 53. Bg6 {[%clk 00:21:04]} {[%emt
00:00:24]} Kd4 {[%clk 00:23:05]} {[%emt 00:02:48]} 54. Bf5 {[%clk 00:19:16]}
{[%emt 00:02:19]} Bd6 {[%clk 00:23:09]} {[%emt 00:00:26]} 55. Bg6 {[%clk
00:17:52]} {[%emt 00:01:53]} Be5 {[%clk 00:23:32]} {[%emt 00:00:06]} 56. Ke2
{[%clk 00:16:22]} {[%emt 00:02:00]} Bd6 {[%clk 00:22:36]} {[%emt 00:01:25]} 57.
Kf3 {[%clk 00:16:49]} {[%emt 00:00:04]} Bc7 {[%clk 00:23:03]} {[%emt 00:00:03]}
58. Ke2 {[%clk 00:14:58]} {[%emt 00:02:21]} Be5 {[%clk 00:21:28]} {[%emt
00:02:04]} 59. Kf3 {[%clk 00:11:28]} {[%emt 00:04:00]} Kd3 {[%clk 00:21:45]}
{[%emt 00:00:13]} 60. Bf5 {[%clk 00:11:12]} {[%emt 00:00:47]} Kd2 {[%clk
00:20:54]} {[%emt 00:01:20]} 61. Bg6 {[%clk 00:09:09]} {[%emt 00:02:32]} Bc7
{[%clk 00:17:37]} {[%emt 00:03:47]} 62. Bf7 {[%clk 00:07:56]} {[%emt 00:01:43]}
Bb8 {[%clk 00:17:56]} {[%emt 00:00:12]} 63. Be6 {[%clk 00:07:47]} {[%emt
00:00:38]} Be5 {[%clk 00:17:59]} {[%emt 00:00:27]} 64. Bf7 {[%clk 00:08:02]}
{[%emt 00:00:15]} Bc7 {[%clk 00:14:11]} {[%emt 00:04:18]} 65. Be6 {[%clk
00:08:23]} {[%emt 00:00:09]} Ke1 {[%clk 00:13:57]} {[%emt 00:00:44]} 66. Ke3
{[%clk 00:06:25]} {[%emt 00:02:28]} Bb6+ {[%clk 00:14:06]} {[%emt 00:00:21]} 67.
Kf3 {[%clk 00:06:51]} {[%emt 00:00:04]} Bd4 {[%clk 00:13:20]} {[%emt 00:01:15]}
68. Bf7 {[%clk 00:04:23]} {[%emt 00:02:58]} Kf1 {[%clk 00:13:45]} {[%emt
00:00:05]} 69. h4 {[%clk 00:04:26]} {[%emt 00:00:28]} Nd7 {[%clk 00:10:33]}
{[%emt 00:03:42]} 70. hxg5 {[%clk 00:04:01]} {[%emt 00:00:55]} Ne5+ {[%clk
00:10:59]} {[%emt 00:00:04]} 71. Kf4 {[%clk 00:04:29]} {[%emt 00:00:01]} Nxf7
{[%clk 00:11:24]} {[%emt 00:00:04]} 72. g6 {[%clk 00:04:57]} {[%emt 00:00:02]}
Nd8 {[%clk 00:09:05]} {[%emt 00:02:49]} 73. Kf5 {[%clk 00:04:16]} {[%emt
00:01:11]} Kxf2 {[%clk 00:09:10]} {[%emt 00:00:24]} 74. e5 {[%clk 00:04:41]}
{[%emt 00:00:05]} Nc6 {[%clk 00:09:12]} {[%emt 00:00:28]} 75. g7 {[%clk
00:00:35]} {[%emt 00:04:35]} Ne7+ {[%clk 00:09:27]} {[%emt 00:00:16]} 76. Kf6
{[%clk 00:00:52]} {[%emt 00:00:13]} Ng8+ {[%clk 00:09:12]} {[%emt 00:00:44]} 77.
Kg5 {[%clk 00:00:57]} {[%emt 00:00:26]} Bxe5 {[%clk 00:08:57]} {[%emt
00:00:46]} 78. Kxh5 {[%clk 00:01:22]} {[%emt 00:00:05]} Bxg7 {[%clk 00:08:08]}
{[%emt 00:01:19]} 79. Kg6 {[%clk 00:01:39]} {[%emt 00:00:13]} Bc3 {[%clk
00:07:09]} {[%emt 00:01:28]} 80. g4 {[%clk 00:02:05]} {[%emt 00:00:04]} Ne7+
{[%clk 00:07:18]} {[%emt 00:00:21]} 81. Kf7 {[%clk 00:02:15]} {[%emt 00:00:20]}
Nd5 {[%clk 00:07:38]} {[%emt 00:00:09]} 82. g5 {[%clk 00:02:27]} {[%emt
00:00:18]} Nf4 {[%clk 00:08:04]} {[%emt 00:00:05]} 83. g6 {[%clk 00:02:52]}
{[%emt 00:00:05]} Nh5 {[%clk 00:08:30]} {[%emt 00:00:03]} 84. Ke6 {[%clk
00:03:05]} {[%emt 00:00:17]} Kf3 {[%clk 00:08:46]} {[%emt 00:00:14]} 85. Kd5
{[%clk 00:03:13]} {[%emt 00:00:22]} Ng7 {[%clk 00:09:09]} {[%emt 00:00:07]} 86.
Kc4 {[%clk 00:03:35]} {[%emt 00:00:08]} Bf6 {[%clk 00:09:35]} {[%emt 00:00:03]}
87. Kd5 {[%clk 00:04:02]} {[%emt 00:00:03]} Kf4 {[%clk 00:10:01]} {[%emt
00:00:03]} 88. Kd6 {[%clk 00:04:28]} {[%emt 00:00:05]} Kf5 {[%clk 00:10:27]}
{[%emt 00:00:04]} 89. Kd5 {[%clk 00:04:55]} {[%emt 00:00:03]} Kxg6 {[%clk
00:10:48]} {[%emt 00:00:09]} 90. Ke4 {[%clk 00:05:21]} {[%emt 00:00:04]} Ne6
{[%clk 00:10:56]} {[%emt 00:00:22]} 91. Kd5 {[%clk 00:05:47]} {[%emt 00:00:05]}
Kf5 {[%clk 00:11:23]} {[%emt 00:00:03]} 92. Kd6 {[%clk 00:06:08]} {[%emt
00:00:08]} Nd4 {[%clk 00:11:28]} {[%emt 00:00:25]} 93. Kd5 {[%clk 00:06:35]}
{[%emt 00:00:04]} Be5 {[%clk 00:11:55]} {[%emt 00:00:03]} 94. Kc4 {[%clk
00:06:50]} {[%emt 00:00:15]} Ke4 {[%clk 00:12:13]} {[%emt 00:00:11]} 95. Kc5
{[%clk 00:07:16]} {[%emt 00:00:04]} Bc7 {[%clk 00:12:39]} {[%emt 00:00:04]} 96.
Kc4 {[%clk 00:07:33]} {[%emt 00:00:13]} Bb6 {[%clk 00:12:46]} {[%emt 00:00:22]}
97. Kc3 {[%clk 00:07:53]} {[%emt 00:00:10]} Nf5 {[%clk 00:12:35]} {[%emt
00:00:41]} 98. Kd2 {[%clk 00:07:22]} {[%emt 00:01:01]} Be3+ {[%clk 00:12:06]}
{[%emt 00:00:58]} 99. Kc3 {[%clk 00:07:17]} {[%emt 00:00:35]} Nd6 {[%clk
00:12:28]} {[%emt 00:00:08]} 100. Kb4 {[%clk 00:07:28]} {[%emt 00:00:20]} Bb6
{[%clk 00:12:54]} {[%emt 00:00:04]} 101. Kc3 {[%clk 00:07:54]} {[%emt
00:00:04]} Ba5+ {[%clk 00:12:37]} {[%emt 00:00:47]} 102. Kc2 {[%clk 00:08:17]}
{[%emt 00:00:08]} Kd4 {[%clk 00:12:56]} {[%emt 00:00:10]} 103. Kb3 {[%clk
00:08:40]} {[%emt 00:00:08]} Kd3 {[%clk 00:13:10]} {[%emt 00:00:15]} 104. Ka4
{[%clk 00:09:06]} {[%emt 00:00:04]} Bd2 {[%clk 00:13:35]} {[%emt 00:00:04]} 105.
Kb3 {[%clk 00:09:29]} {[%emt 00:00:07]} Ne4 {[%clk 00:13:35]} {[%emt 00:00:30]}
106. Ka4 {[%clk 00:09:42]} {[%emt 00:00:18]} Kc4 {[%clk 00:13:51]} {[%emt
00:00:14]} 107. Ka3 {[%clk 00:10:09]} {[%emt 00:00:03]} Nc5 {[%clk 00:14:06]}
{[%emt 00:00:14]} 108. Kb2 {[%clk 00:10:35]} {[%emt 00:00:05]} Kd3 {[%clk
00:14:31]} {[%emt 00:00:04]} 109. Ka3 {[%clk 00:11:01]} {[%emt 00:00:04]} Kc2
{[%clk 00:14:47]} {[%emt 00:00:13]} 110. Ka2 {[%clk 00:11:28]} {[%emt
00:00:03]} Bb4 {[%clk 00:15:00]} {[%emt 00:00:17]} 111. Ka1 {[%clk 00:11:55]}
{[%emt 00:00:04]} Nd3 {[%clk 00:15:26]} {[%emt 00:00:04]} 0-1

[Event "FIDE Women's Grand Swiss 2023"]
[Site "Villa Marina, Douglas, Isle of Man, Isle Of Man"]
[Date "2023.10.30"]
[Round "6.12"]
[White "Dronavalli, Harika"]
[Black "Savitha, Shri B"]
[Result "1-0"]
[TimeControl "40/90 + 30 + 30s/move"]
[WhiteFideId "5015197"]
[BlackFideId "35061887"]
[WhiteElo "2502"]
[BlackElo "2375"]

1. Nf3 {[%clk 01:30:49]} {[%emt 00:00:10]} d5 {[%clk 01:30:13]} {[%emt
00:00:48]} 2. d4 {[%clk 01:29:26]} {[%emt 00:01:52]} Nc6 {[%clk 01:30:37]}
{[%emt 00:00:06]} 3. e3 {[%clk 01:22:14]} {[%emt 00:07:41]} Bg4 {[%clk
01:29:43]} {[%emt 00:01:25]} 4. h3 {[%clk 01:20:46]} {[%emt 00:01:57]} Bh5
{[%clk 01:25:27]} {[%emt 00:04:47]} 5. Nbd2 {[%clk 01:12:44]} {[%emt 00:08:32]}
e5 {[%clk 01:17:50]} {[%emt 00:08:07]} 6. g4 {[%clk 01:03:57]} {[%emt
00:09:16]} Bg6 {[%clk 01:17:55]} {[%emt 00:00:26]} 7. dxe5 {[%clk 00:53:54]}
{[%emt 00:10:33]} d4 {[%clk 01:08:18]} {[%emt 00:10:07]} 8. e4 {[%clk
00:51:12]} {[%emt 00:03:11]} Bb4 {[%clk 01:04:33]} {[%emt 00:04:16]} 9. Bd3
{[%clk 00:48:07]} {[%emt 00:03:36]} h5 {[%clk 00:52:35]} {[%emt 00:12:28]} 10.
Rg1 {[%clk 00:46:34]} {[%emt 00:02:02]} hxg4 {[%clk 00:52:42]} {[%emt
00:00:23]} 11. hxg4 {[%clk 00:47:00]} {[%emt 00:00:04]} Qd7 {[%clk 00:45:21]}
{[%emt 00:07:51]} 12. a3 {[%clk 00:45:43]} {[%emt 00:01:47]} Be7 {[%clk
00:45:21]} {[%emt 00:00:29]} 13. Nb3 {[%clk 00:40:37]} {[%emt 00:05:37]} O-O-O
{[%clk 00:40:13]} {[%emt 00:05:37]} 14. Qe2 {[%clk 00:40:04]} {[%emt 00:01:03]}
Nh6 {[%clk 00:31:48]} {[%emt 00:08:56]} 15. Bxh6 {[%clk 00:36:57]} {[%emt
00:03:37]} gxh6 {[%clk 00:32:14]} {[%emt 00:00:04]} 16. O-O-O {[%clk 00:37:18]}
{[%emt 00:00:08]} Bg5+ {[%clk 00:31:39]} {[%emt 00:01:05]} 17. Nxg5 {[%clk
00:35:36]} {[%emt 00:02:11]} hxg5 {[%clk 00:32:07]} {[%emt 00:00:02]} 18. Bb5
{[%clk 00:34:24]} {[%emt 00:01:42]} Qe6 {[%clk 00:31:15]} {[%emt 00:01:23]} 19.
Bxc6 {[%clk 00:33:46]} {[%emt 00:01:09]} Qxc6 {[%clk 00:31:40]} {[%emt
00:00:04]} 20. Nxd4 {[%clk 00:28:28]} {[%emt 00:05:47]} Qxe4 {[%clk 00:31:44]}
{[%emt 00:00:26]} 21. Qxe4 {[%clk 00:27:18]} {[%emt 00:01:41]} Bxe4 {[%clk
00:32:09]} {[%emt 00:00:05]} 22. Rge1 {[%clk 00:18:21]} {[%emt 00:09:27]} Bd5
{[%clk 00:30:59]} {[%emt 00:01:40]} 23. b3 {[%clk 00:12:22]} {[%emt 00:06:29]}
Rd7 {[%clk 00:26:30]} {[%emt 00:04:59]} 24. Re3 {[%clk 00:10:21]} {[%emt
00:02:31]} Rh2 {[%clk 00:23:22]} {[%emt 00:03:39]} 25. c4 {[%clk 00:08:51]}
{[%emt 00:01:59]} Be6 {[%clk 00:22:02]} {[%emt 00:01:50]} 26. Nxe6 {[%clk
00:09:15]} {[%emt 00:00:06]} fxe6 {[%clk 00:22:00]} {[%emt 00:00:32]} 27. Rf3
{[%clk 00:08:43]} {[%emt 00:01:01]} Rxd1+ {[%clk 00:21:51]} {[%emt 00:00:40]}
28. Kxd1 {[%clk 00:09:08]} {[%emt 00:00:05]} Rg2 {[%clk 00:21:29]} {[%emt
00:00:53]} 29. Rf8+ {[%clk 00:08:19]} {[%emt 00:01:18]} Kd7 {[%clk 00:21:57]}
{[%emt 00:00:01]} 30. Rf7+ {[%clk 00:08:37]} {[%emt 00:00:11]} Kd8 {[%clk
00:16:50]} {[%emt 00:05:38]} 31. f3 {[%clk 00:09:01]} {[%emt 00:00:06]} Rb2
{[%clk 00:16:54]} {[%emt 00:00:27]} 32. b4 {[%clk 00:08:47]} {[%emt 00:00:44]}
Ra2 {[%clk 00:15:08]} {[%emt 00:02:16]} 33. Rg7 {[%clk 00:07:16]} {[%emt
00:02:01]} Rf2 {[%clk 00:08:33]} {[%emt 00:07:06]} 34. Rxg5 {[%clk 00:06:59]}
{[%emt 00:00:46]} Rxf3 {[%clk 00:08:59]} {[%emt 00:00:04]} 35. Rg8+ {[%clk
00:07:19]} {[%emt 00:00:10]} Kd7 {[%clk 00:09:24]} {[%emt 00:00:05]} 36. Rg7+
{[%clk 00:07:44]} {[%emt 00:00:05]} Kd8 {[%clk 00:09:51]} {[%emt 00:00:04]} 37.
Ke2 {[%clk 00:05:13]} {[%emt 00:03:01]} Rxa3 {[%clk 00:10:13]} {[%emt
00:00:09]} 38. g5 {[%clk 00:04:49]} {[%emt 00:00:53]} Rc3 {[%clk 00:10:04]}
{[%emt 00:00:39]} 39. g6 {[%clk 00:02:18]} {[%emt 00:03:01]} Rxc4 {[%clk
00:06:45]} {[%emt 00:03:49]} 40. Kf3 {[%clk 00:02:25]} {[%emt 00:00:22]} Ke8
{[%clk 00:04:18]} {[%emt 00:02:57]} 41. Rg8+ {[%clk 00:02:36]} {[%emt
00:00:20]} Ke7 {[%clk 00:04:23]} {[%emt 00:00:25]} 42. Rb8 {[%clk 00:27:24]}
{[%emt 00:05:33]} Rc3+ {[%clk 00:32:06]} {[%emt 00:02:56]} 43. Kf4 {[%clk
00:27:26]} {[%emt 00:00:27]} Rc4+ {[%clk 00:31:59]} {[%emt 00:00:38]} 44. Kg5
{[%clk 00:25:37]} {[%emt 00:02:17]} Rc1 {[%clk 00:29:57]} {[%emt 00:02:34]} 45.
g7 {[%clk 00:15:23]} {[%emt 00:10:43]} Rg1+ {[%clk 00:29:49]} {[%emt 00:00:39]}
46. Kh6 {[%clk 00:15:49]} {[%emt 00:00:04]} Rh1+ {[%clk 00:30:02]} {[%emt
00:00:17]} 47. Kg6 {[%clk 00:16:13]} {[%emt 00:00:05]} Rg1+ {[%clk 00:30:29]}
{[%emt 00:00:04]} 48. Kh7 {[%clk 00:16:39]} {[%emt 00:00:04]} Rh1 {[%clk
00:30:56]} {[%emt 00:00:03]} 49. Kg8 {[%clk 00:17:03]} {[%emt 00:00:05]} b6
{[%clk 00:29:31]} {[%emt 00:01:56]} 50. b5 {[%clk 00:15:08]} {[%emt 00:02:25]}
Re1 {[%clk 00:27:22]} {[%emt 00:02:38]} 51. Rc8 {[%clk 00:12:35]} {[%emt
00:03:03]} Rc1 {[%clk 00:10:16]} {[%emt 00:17:36]} 52. Rf8 {[%clk 00:12:37]}
{[%emt 00:00:28]} Rc2 {[%clk 00:09:17]} {[%emt 00:01:29]} 53. Rf7+ {[%clk
00:12:35]} {[%emt 00:00:31]} Ke8 {[%clk 00:09:42]} {[%emt 00:00:06]} 54. Rf6
{[%clk 00:12:46]} {[%emt 00:00:18]} 1-0